[Event "*** Titled Tuesday Blitz"]
[Site "Chess.com"]
[Date "2019.11.05"]
[Round "5"]
[White "MFBerna"]
[Black "Joel1285"]
[Result "1-0"]
[WhiteElo "2308"]
[BlackElo "1896"]
[TimeControl "180+2"]
[EndTime "14:08:08 PST"]
[Termination "MFBerna won by resignation"]

1. e4 {[%clk 0:03:01.9]} 1... c5 {[%clk 0:03:00.7]} 2. Nf3 {[%clk 0:03:01.2]}
2... Nc6 {[%clk 0:03:02.3]} 3. Bb5 {[%clk 0:02:55.6]} 3... g6 {[%clk 0:03:02.7]}
4. O-O {[%clk 0:02:55.9]} 4... Bg7 {[%clk 0:03:03.5]} 5. Re1 {[%clk 0:02:55.2]}
5... Nf6 {[%clk 0:03:03.6]} 6. e5 {[%clk 0:02:54.4]} 6... Nd5 {[%clk 0:03:04.4]}
7. d3 {[%clk 0:02:52.6]} 7... O-O {[%clk 0:03:02.1]} 8. Nc3 {[%clk 0:02:52.5]}
8... Nc7 {[%clk 0:02:46.1]} 9. Bc4 {[%clk 0:02:48.6]} 9... b6 {[%clk 0:02:33.6]}
10. Bf4 {[%clk 0:02:44.4]} 10... Ne6 {[%clk 0:02:30.4]} 11. Bg3 {[%clk
0:02:45.3]} 11... Bb7 {[%clk 0:02:23.2]} 12. a3 {[%clk 0:02:43.6]} 12... Ncd4
{[%clk 0:01:47.9]} 13. Nxd4 {[%clk 0:02:43.5]} 13... Nxd4 {[%clk 0:01:49.8]} 14.
Nd5 {[%clk 0:02:42.5]} 14... b5 {[%clk 0:01:41.1]} 15. Ba2 {[%clk 0:02:42.8]}
15... Rc8 {[%clk 0:01:09.3]} 16. c3 {[%clk 0:02:43]} 16... Ne6 {[%clk
0:01:04.2]} 17. Qf3 {[%clk 0:02:32]} 17... Bc6 {[%clk 0:00:43.4]} 18. Rad1
{[%clk 0:02:28.3]} 18... Nc7 {[%clk 0:00:39.3]} 19. c4 {[%clk 0:02:14]} 19... e6
{[%clk 0:00:09.8]} 20. Nf6+ {[%clk 0:02:14.6]} 20... Bxf6 {[%clk 0:00:10.6]} 21.
Qxf6 {[%clk 0:02:16.5]} 21... Qxf6 {[%clk 0:00:11.5]} 22. exf6 {[%clk
0:02:18.4]} 22... Ne8 {[%clk 0:00:10.1]} 23. Bh4 {[%clk 0:02:08.3]} 23... d6
{[%clk 0:00:10.7]} 24. b4 {[%clk 0:02:06.8]} 24... cxb4 {[%clk 0:00:10.1]} 25.
axb4 {[%clk 0:02:08.7]} 25... bxc4 {[%clk 0:00:11.9]} 26. dxc4 {[%clk
0:02:09.5]} 26... e5 {[%clk 0:00:13.4]} 27. f4 {[%clk 0:02:03.2]} 27... exf4
{[%clk 0:00:12.1]} 28. Re7 {[%clk 0:02:04.6]} 28... Rc7 {[%clk 0:00:12.4]} 29.
Rde1 {[%clk 0:01:36.9]} 29... h6 {[%clk 0:00:10.7]} 30. b5 {[%clk 0:01:36.3]}
30... Bd7 {[%clk 0:00:03]} 31. c5 {[%clk 0:01:33.4]} 31... dxc5 {[%clk
0:00:02.9]} 32. Rd1 {[%clk 0:00:30.3]} 32... g5 {[%clk 0:00:02.5]} 33. Bf2
{[%clk 0:00:22.8]} 33... Nxf6 {[%clk 0:00:03.2]} 34. Rd6 {[%clk 0:00:19.9]}
34... Kg7 {[%clk 0:00:02.8]} 35. g3 {[%clk 0:00:11.1]} 35... Be6 {[%clk
0:00:04.1]} 36. Rdxe6 {[%clk 0:00:10.7]} 36... Rxe7 {[%clk 0:00:04.6]} 37. Rxe7
{[%clk 0:00:12.6]} 37... Nd5 {[%clk 0:00:05.2]} 38. Rxa7 {[%clk 0:00:12.2]}
38... fxg3 {[%clk 0:00:06.8]} 39. Bxc5 {[%clk 0:00:11.3]} 39... gxh2+ {[%clk
0:00:07.2]} 40. Kxh2 {[%clk 0:00:11.6]} 40... Nf4 {[%clk 0:00:06.4]} 41. Bxf8+
{[%clk 0:00:12]} 41... Kxf8 {[%clk 0:00:08.3]} 42. Rxf7+ {[%clk 0:00:13.2]} 1-0

[Event "*** Titled Tuesday Blitz"]
[Site "Chess.com"]
[Date "2019.11.05"]
[Round "5"]
[White "SHIVACalypso"]
[Black "belisarius64"]
[Result "0-1"]
[WhiteElo "2277"]
[BlackElo "2584"]
[TimeControl "180+2"]
[EndTime "14:08:09 PST"]
[Termination "belisarius64 won on time"]

1. Nf3 {[%clk 0:03:01.9]} 1... d5 {[%clk 0:02:56.9]} 2. c4 {[%clk 0:03:00.2]}
2... e6 {[%clk 0:02:57.6]} 3. g3 {[%clk 0:03:00.8]} 3... g6 {[%clk 0:02:53.9]}
4. Bg2 {[%clk 0:03:01.7]} 4... Bg7 {[%clk 0:02:53.4]} 5. O-O {[%clk 0:03:02.6]}
5... Ne7 {[%clk 0:02:52.6]} 6. d4 {[%clk 0:02:59.9]} 6... O-O {[%clk 0:02:52.5]}
7. cxd5 {[%clk 0:02:58.9]} 7... exd5 {[%clk 0:02:52.6]} 8. Nc3 {[%clk
0:02:59.2]} 8... c6 {[%clk 0:02:45.6]} 9. b3 {[%clk 0:02:55.9]} 9... Nf5 {[%clk
0:02:46.1]} 10. a4 {[%clk 0:02:37.4]} 10... Re8 {[%clk 0:02:43.1]} 11. e3 {[%clk
0:02:37.3]} 11... h5 {[%clk 0:02:28.8]} 12. Ba3 {[%clk 0:02:24]} 12... h4 {[%clk
0:02:18.4]} 13. Rc1 {[%clk 0:02:17.8]} 13... hxg3 {[%clk 0:02:17.6]} 14. hxg3
{[%clk 0:02:19.7]} 14... Bh6 {[%clk 0:02:07]} 15. Ne5 {[%clk 0:01:56.8]} 15...
Nd7 {[%clk 0:01:36.8]} 16. Nxd7 {[%clk 0:01:30.9]} 16... Bxd7 {[%clk 0:01:37.2]}
17. Rc2 {[%clk 0:01:21.5]} 17... Kg7 {[%clk 0:01:25.2]} 18. e4 {[%clk
0:01:06.9]} 18... dxe4 {[%clk 0:01:21]} 19. Nxe4 {[%clk 0:01:08.8]} 19... Be6
{[%clk 0:01:13.6]} 20. d5 {[%clk 0:00:57.5]} 20... Bxd5 {[%clk 0:00:39.4]} 21.
Bb2+ {[%clk 0:00:57.9]} 21... Kf8 {[%clk 0:00:40.8]} 22. Nf6 {[%clk 0:00:50.9]}
22... Bxg2 {[%clk 0:00:31.1]} 23. Nh7+ {[%clk 0:00:27.1]} 23... Kg8 {[%clk
0:00:29.1]} 24. Nf6+ {[%clk 0:00:27.3]} 24... Qxf6 {[%clk 0:00:19.1]} 25. Bxf6
{[%clk 0:00:27.7]} 25... Bxf1 {[%clk 0:00:21]} 26. Qxf1 {[%clk 0:00:26.7]} 26...
Re6 {[%clk 0:00:22.1]} 27. Bb2 {[%clk 0:00:25]} 27... Rae8 {[%clk 0:00:23.4]}
28. Qc4 {[%clk 0:00:21.4]} 28... Re1+ {[%clk 0:00:17.7]} 29. Kg2 {[%clk
0:00:22.3]} 29... Rd1 {[%clk 0:00:15.9]} 30. Qc3 {[%clk 0:00:20.2]} 30... Bg7
{[%clk 0:00:17]} 31. Qc4 {[%clk 0:00:20]} 31... Ree1 {[%clk 0:00:14.8]} 32. Bxg7
{[%clk 0:00:18.2]} 32... Rg1+ {[%clk 0:00:15.1]} 33. Kf3 {[%clk 0:00:18.5]}
33... Kxg7 {[%clk 0:00:15.9]} 34. Qe4 {[%clk 0:00:15.8]} 34... Nd4+ {[%clk
0:00:16.6]} 35. Kf4 {[%clk 0:00:13.1]} 35... Nxc2 {[%clk 0:00:17.7]} 36. Qe5+
{[%clk 0:00:11.3]} 36... Kg8 {[%clk 0:00:18.7]} 37. Qe8+ {[%clk 0:00:11.9]}
37... Kg7 {[%clk 0:00:18.7]} 38. Qe5+ {[%clk 0:00:13.2]} 38... Kh7 {[%clk
0:00:15.2]} 39. Qf6 {[%clk 0:00:10.5]} 39... Rd4+ {[%clk 0:00:15.6]} 40. Kf3
{[%clk 0:00:08.2]} 40... Kg8 {[%clk 0:00:15.5]} 0-1

[Event "*** Titled Tuesday Blitz"]
[Site "Chess.com"]
[Date "2019.11.05"]
[Round "5"]
[White "Tsschessulover"]
[Black "Alex_Molchanov"]
[Result "0-1"]
[WhiteElo "2428"]
[BlackElo "2629"]
[TimeControl "180+2"]
[EndTime "14:08:10 PST"]
[Termination "Alex_Molchanov won by resignation"]

1. d4 {[%clk 0:03:01.9]} 1... d5 {[%clk 0:03:00.4]} 2. c4 {[%clk 0:03:03.4]}
2... e6 {[%clk 0:03:01.3]} 3. Nc3 {[%clk 0:03:04.6]} 3... Be7 {[%clk 0:03:02]}
4. cxd5 {[%clk 0:03:05.1]} 4... exd5 {[%clk 0:03:03]} 5. Nf3 {[%clk 0:03:05.4]}
5... c6 {[%clk 0:03:03.8]} 6. Bf4 {[%clk 0:03:04.3]} 6... Bf5 {[%clk 0:03:02.2]}
7. e3 {[%clk 0:03:05.7]} 7... Nf6 {[%clk 0:03:02.8]} 8. Bd3 {[%clk 0:03:06.9]}
8... Bxd3 {[%clk 0:03:02]} 9. Qxd3 {[%clk 0:03:08.8]} 9... O-O {[%clk
0:03:03.1]} 10. O-O {[%clk 0:03:09.4]} 10... Nbd7 {[%clk 0:03:03.5]} 11. Rab1
{[%clk 0:03:09.8]} 11... Nb6 {[%clk 0:02:59.8]} 12. h3 {[%clk 0:03:05.9]} 12...
Re8 {[%clk 0:03:00.5]} 13. Ne5 {[%clk 0:03:06.1]} 13... Nfd7 {[%clk 0:03:00.2]}
14. b4 {[%clk 0:03:04.3]} 14... Nxe5 {[%clk 0:03:00.4]} 15. Bxe5 {[%clk
0:03:05.6]} 15... Nc4 {[%clk 0:02:59.9]} 16. Bh2 {[%clk 0:03:05.3]} 16... b5
{[%clk 0:02:49.7]} 17. e4 {[%clk 0:03:02.5]} 17... dxe4 {[%clk 0:02:45.2]} 18.
Nxe4 {[%clk 0:03:00.9]} 18... Qd5 {[%clk 0:02:44.4]} 19. Nc3 {[%clk 0:02:51.1]}
19... Qd7 {[%clk 0:02:39.3]} 20. Rfd1 {[%clk 0:02:37.5]} 20... Rad8 {[%clk
0:02:39.6]} 21. a4 {[%clk 0:02:26]} 21... a6 {[%clk 0:02:36.2]} 22. axb5 {[%clk
0:02:26.2]} 22... axb5 {[%clk 0:02:26.3]} 23. d5 {[%clk 0:01:53.1]} 23... Bf6
{[%clk 0:02:26.6]} 24. Qf3 {[%clk 0:01:10.5]} 24... Bxc3 {[%clk 0:02:14]} 25.
dxc6 {[%clk 0:01:06.1]} 25... Qxd1+ {[%clk 0:02:11]} 26. Rxd1 {[%clk 0:01:04.9]}
26... Rxd1+ {[%clk 0:02:12.9]} 27. Qxd1 {[%clk 0:01:03.6]} 27... Re1+ {[%clk
0:02:14.5]} 28. Qxe1 {[%clk 0:01:00.6]} 28... Bxe1 {[%clk 0:02:16.4]} 29. c7
{[%clk 0:00:34.7]} 29... Nb6 {[%clk 0:02:14.6]} 30. Bd6 {[%clk 0:00:35.3]} 30...
f5 {[%clk 0:02:02.8]} 31. Kf1 {[%clk 0:00:34.6]} 31... Bc3 {[%clk 0:02:01]} 32.
Ke2 {[%clk 0:00:35.5]} 32... Kf7 {[%clk 0:02:00.5]} 33. Ke3 {[%clk 0:00:32.6]}
33... Ke6 {[%clk 0:01:57.7]} 34. Bc5 {[%clk 0:00:33]} 34... Nc8 {[%clk
0:01:52.6]} 35. Bd4 {[%clk 0:00:31.9]} 35... Bxb4 {[%clk 0:01:23.2]} 36. Bxg7
{[%clk 0:00:30.9]} 36... Bd6 {[%clk 0:01:09.5]} 37. Kd4 {[%clk 0:00:29.4]} 37...
Ne7 {[%clk 0:01:00.7]} 38. g4 {[%clk 0:00:17.6]} 38... Nc6+ {[%clk 0:00:58.2]}
39. Ke3 {[%clk 0:00:15.9]} 39... Bxc7 {[%clk 0:00:58.2]} 40. gxf5+ {[%clk
0:00:12.8]} 40... Kxf5 {[%clk 0:01:00.1]} 41. Kd3 {[%clk 0:00:10.5]} 41... Bb6
{[%clk 0:00:57.5]} 42. f3 {[%clk 0:00:07.3]} 42... Kf4 {[%clk 0:00:53.4]} 43.
Ke2 {[%clk 0:00:07.4]} 43... Nd4+ {[%clk 0:00:53.5]} 44. Kd3 {[%clk 0:00:06.8]}
44... Nxf3 {[%clk 0:00:48.6]} 45. Kc3 {[%clk 0:00:06.9]} 45... Bc5 {[%clk
0:00:48.7]} 46. Kb3 {[%clk 0:00:06.6]} 46... h5 {[%clk 0:00:45.6]} 47. Bf6
{[%clk 0:00:05.1]} 47... Kg3 {[%clk 0:00:46.1]} 48. Be7 {[%clk 0:00:03.9]} 48...
Bxe7 {[%clk 0:00:45.8]} 0-1

[Event "*** Titled Tuesday Blitz"]
[Site "Chess.com"]
[Date "2019.11.05"]
[Round "5"]
[White "Misha_Bilous"]
[Black "liczner"]
[Result "0-1"]
[WhiteElo "2488"]
[BlackElo "2795"]
[TimeControl "180+2"]
[EndTime "14:08:12 PST"]
[Termination "liczner won on time"]

1. d4 {[%clk 0:03:01.9]} 1... Nf6 {[%clk 0:03:00.3]} 2. c4 {[%clk 0:03:01.9]}
2... g6 {[%clk 0:03:01.7]} 3. f3 {[%clk 0:03:02.6]} 3... c5 {[%clk 0:02:59.4]}
4. d5 {[%clk 0:03:02.5]} 4... b5 {[%clk 0:02:58.4]} 5. cxb5 {[%clk 0:03:01.7]}
5... a6 {[%clk 0:02:58.7]} 6. e4 {[%clk 0:03:00.8]} 6... d6 {[%clk 0:02:51.6]}
7. Nc3 {[%clk 0:02:58.5]} 7... Bg7 {[%clk 0:02:51.5]} 8. Be3 {[%clk 0:02:54.1]}
8... O-O {[%clk 0:02:51.1]} 9. bxa6 {[%clk 0:02:52.1]} 9... Qb6 {[%clk 0:02:44]}
10. Qd2 {[%clk 0:02:48.4]} 10... Nxa6 {[%clk 0:02:40.8]} 11. Bb5 {[%clk
0:02:19.4]} 11... Bd7 {[%clk 0:01:45.8]} 12. Bxd7 {[%clk 0:02:06.1]} 12... Nxd7
{[%clk 0:01:47.7]} 13. Nge2 {[%clk 0:02:07.2]} 13... Ne5 {[%clk 0:01:36.1]} 14.
b3 {[%clk 0:02:04.3]} 14... Nc7 {[%clk 0:01:30.3]} 15. O-O {[%clk 0:01:57.5]}
15... Rfb8 {[%clk 0:01:31.1]} 16. h3 {[%clk 0:01:49.6]} 16... Nb5 {[%clk
0:01:32.1]} 17. f4 {[%clk 0:01:25.7]} 17... Nd7 {[%clk 0:01:26.8]} 18. Rac1
{[%clk 0:01:22.7]} 18... Qa6 {[%clk 0:01:08.4]} 19. e5 {[%clk 0:01:18.1]} 19...
Nxc3 {[%clk 0:00:58.8]} 20. Nxc3 {[%clk 0:01:14.9]} 20... dxe5 {[%clk 0:01:00]}
21. fxe5 {[%clk 0:01:15.7]} 21... Bxe5 {[%clk 0:00:53]} 22. Bg5 {[%clk
0:00:44.3]} 22... f6 {[%clk 0:00:46.4]} 23. Bf4 {[%clk 0:00:40.3]} 23... c4
{[%clk 0:00:33.9]} 24. bxc4 {[%clk 0:00:28.5]} 24... Qxc4 {[%clk 0:00:34.3]} 25.
d6 {[%clk 0:00:22.2]} 25... Qc5+ {[%clk 0:00:26.7]} 26. Kh1 {[%clk 0:00:20.9]}
26... Qxd6 {[%clk 0:00:27.3]} 27. Qxd6 {[%clk 0:00:13.5]} 27... exd6 {[%clk
0:00:29.2]} 28. Bxe5 {[%clk 0:00:10.4]} 28... dxe5 {[%clk 0:00:27]} 29. Rfd1
{[%clk 0:00:09.4]} 29... Nb6 {[%clk 0:00:21]} 30. Rc2 {[%clk 0:00:05.5]} 30...
Rd8 {[%clk 0:00:16.4]} 31. Rdc1 {[%clk 0:00:04.3]} 31... f5 {[%clk 0:00:15.1]}
32. Nb5 {[%clk 0:00:04.5]} 32... e4 {[%clk 0:00:12.3]} 33. Rc6 {[%clk
0:00:03.6]} 33... Nd5 {[%clk 0:00:12.1]} 34. a3 {[%clk 0:00:04.3]} 34... Nf4
{[%clk 0:00:08.9]} 35. Rc7 {[%clk 0:00:03.1]} 35... Rdb8 {[%clk 0:00:07.3]} 36.
R1c5 {[%clk 0:00:03]} 36... Ne6 {[%clk 0:00:07.7]} 0-1

[Event "*** Titled Tuesday Blitz"]
[Site "Chess.com"]
[Date "2019.11.05"]
[Round "5"]
[White "WorldChampionBulletChess"]
[Black "Saitama_Hero"]
[Result "1/2-1/2"]
[WhiteElo "2091"]
[BlackElo "2347"]
[TimeControl "180+2"]
[EndTime "14:08:17 PST"]
[Termination "Game drawn by repetition"]

1. f4 {[%clk 0:03:01.9]} 1... e5 {[%clk 0:02:59.1]} 2. d3 {[%clk 0:03:03.8]}
2... exf4 {[%clk 0:02:47.2]} 3. Bxf4 {[%clk 0:03:05.7]} 3... Qf6 {[%clk
0:02:46.9]} 4. Bc1 {[%clk 0:03:04.9]} 4... d5 {[%clk 0:02:41.3]} 5. Nf3 {[%clk
0:03:05.4]} 5... Bg4 {[%clk 0:02:40.5]} 6. g3 {[%clk 0:02:56.6]} 6... Bc5 {[%clk
0:02:37.2]} 7. Bg2 {[%clk 0:02:54.4]} 7... Nc6 {[%clk 0:02:36.1]} 8. c3 {[%clk
0:02:47.3]} 8... d4 {[%clk 0:02:30.7]} 9. c4 {[%clk 0:02:45.9]} 9... Nge7 {[%clk
0:02:08.4]} 10. O-O {[%clk 0:02:46.8]} 10... h6 {[%clk 0:01:57.7]} 11. Bf4
{[%clk 0:02:23]} 11... O-O-O {[%clk 0:01:53.3]} 12. a3 {[%clk 0:02:13.6]} 12...
a5 {[%clk 0:01:40.9]} 13. b4 {[%clk 0:02:13.7]} 13... axb4 {[%clk 0:01:42.1]}
14. axb4 {[%clk 0:02:15.6]} 14... Bxb4 {[%clk 0:01:37.9]} 15. Nfd2 {[%clk
0:01:55.9]} 15... Qe6 {[%clk 0:01:35.1]} 16. Rf2 {[%clk 0:01:37.2]} 16... g5
{[%clk 0:01:35.1]} 17. Bxc7 {[%clk 0:01:03.8]} 17... Kxc7 {[%clk 0:01:34.6]} 18.
Na3 {[%clk 0:00:57]} 18... Nf5 {[%clk 0:01:29.3]} 19. Nb5+ {[%clk 0:00:46.8]}
19... Kd7 {[%clk 0:01:28]} 20. Ne4 {[%clk 0:00:45.7]} 20... Ne3 {[%clk
0:01:23.7]} 21. Qb3 {[%clk 0:00:34.9]} 21... Nxg2 {[%clk 0:01:23.8]} 22. Nf6+
{[%clk 0:00:35.8]} 22... Ke7 {[%clk 0:01:21.6]} 23. Kxg2 {[%clk 0:00:34.8]}
23... Bf5 {[%clk 0:01:20]} 24. Raf1 {[%clk 0:00:34.2]} 24... Qxf6 {[%clk
0:01:16.8]} 25. Rxf5 {[%clk 0:00:33.5]} 25... Qe6 {[%clk 0:01:18.2]} 26. Nc7
{[%clk 0:00:25.7]} 26... Qxe2+ {[%clk 0:01:11.5]} 27. R1f2 {[%clk 0:00:26.8]}
27... Qe1 {[%clk 0:00:42.6]} 28. Rxf7+ {[%clk 0:00:25.2]} 28... Kd6 {[%clk
0:00:44.1]} 29. c5+ {[%clk 0:00:13.3]} 29... Kxc5 {[%clk 0:00:40.6]} 30. Qc4+
{[%clk 0:00:14.6]} 30... Kb6 {[%clk 0:00:41.3]} 31. Qb5+ {[%clk 0:00:15.4]}
31... Ka7 {[%clk 0:00:42.4]} 32. Ra2+ {[%clk 0:00:16.7]} 32... Ba5 {[%clk
0:00:39.4]} 33. Qc5+ {[%clk 0:00:13.8]} 33... Kb8 {[%clk 0:00:38.4]} 34. Na6+
{[%clk 0:00:11.7]} 34... Ka8 {[%clk 0:00:19.5]} 35. Nc7+ {[%clk 0:00:12.6]}
35... Kb8 {[%clk 0:00:20.7]} 36. Rb2 {[%clk 0:00:06.3]} 36... Bxc7 {[%clk
0:00:15.4]} 37. Qxc6 {[%clk 0:00:07.2]} 37... Qe2+ {[%clk 0:00:03.1]} 38. Kh3
{[%clk 0:00:03.4]} 38... Qxb2 {[%clk 0:00:02.9]} 39. Qxc7+ {[%clk 0:00:04.4]}
39... Ka7 {[%clk 0:00:03.6]} 40. Qa5+ {[%clk 0:00:05.7]} 40... Kb8 {[%clk
0:00:05.1]} 41. Qc7+ {[%clk 0:00:07]} 41... Ka8 {[%clk 0:00:06.7]} 42. Qa5+
{[%clk 0:00:07.7]} 42... Kb8 {[%clk 0:00:07.6]} 43. Qc7+ {[%clk 0:00:08.4]}
1/2-1/2

[Event "*** Titled Tuesday Blitz"]
[Site "Chess.com"]
[Date "2019.11.05"]
[Round "5"]
[White "Recombinant"]
[Black "KL31"]
[Result "1-0"]
[WhiteElo "2347"]
[BlackElo "2497"]
[TimeControl "180+2"]
[EndTime "14:08:37 PST"]
[Termination "Recombinant won on time"]

1. d4 {[%clk 0:03:01.9]} 1... Nf6 {[%clk 0:03:00.7]} 2. c4 {[%clk 0:03:02.4]}
2... e6 {[%clk 0:03:02]} 3. Nc3 {[%clk 0:03:01.6]} 3... Bb4 {[%clk 0:03:03]} 4.
Nf3 {[%clk 0:03:02.1]} 4... O-O {[%clk 0:03:02.9]} 5. g3 {[%clk 0:03:02.5]} 5...
d5 {[%clk 0:03:01.4]} 6. Bg2 {[%clk 0:03:02]} 6... c6 {[%clk 0:02:54.4]} 7. Qb3
{[%clk 0:02:50.8]} 7... Bd6 {[%clk 0:02:41.2]} 8. O-O {[%clk 0:02:50.8]} 8...
Nbd7 {[%clk 0:02:40]} 9. Re1 {[%clk 0:02:33.8]} 9... b6 {[%clk 0:02:17.5]} 10.
e4 {[%clk 0:02:30.4]} 10... dxe4 {[%clk 0:02:14.8]} 11. Nxe4 {[%clk 0:02:30.9]}
11... Nxe4 {[%clk 0:02:16.7]} 12. Rxe4 {[%clk 0:02:31.7]} 12... Bb7 {[%clk
0:02:17.2]} 13. Re1 {[%clk 0:02:31.6]} 13... c5 {[%clk 0:02:14.3]} 14. Be3
{[%clk 0:02:30.5]} 14... cxd4 {[%clk 0:02:10.4]} 15. Nxd4 {[%clk 0:02:30.6]}
15... Bxg2 {[%clk 0:02:09.3]} 16. Kxg2 {[%clk 0:02:31.5]} 16... Nc5 {[%clk
0:01:59.7]} 17. Qc2 {[%clk 0:02:30.3]} 17... Qe7 {[%clk 0:01:52.2]} 18. Rad1
{[%clk 0:02:28.7]} 18... Qb7+ {[%clk 0:01:49.4]} 19. Kg1 {[%clk 0:02:28.1]}
19... Rad8 {[%clk 0:01:37.4]} 20. Nb5 {[%clk 0:02:20.1]} 20... Be7 {[%clk
0:01:34.7]} 21. b3 {[%clk 0:02:02.2]} 21... h6 {[%clk 0:01:13.6]} 22. Rxd8
{[%clk 0:01:40.5]} 22... Rxd8 {[%clk 0:01:13.9]} 23. Rd1 {[%clk 0:01:41.9]}
23... Qf3 {[%clk 0:00:44.4]} 24. Rxd8+ {[%clk 0:01:39.3]} 24... Bxd8 {[%clk
0:00:46.3]} 25. Nd4 {[%clk 0:01:34.8]} 25... Qh5 {[%clk 0:00:42.5]} 26. Nc6
{[%clk 0:01:28.2]} 26... Bf6 {[%clk 0:00:38]} 27. Nxa7 {[%clk 0:01:25.9]} 27...
Qf3 {[%clk 0:00:31.3]} 28. Nb5 {[%clk 0:01:22.8]} 28... Ne4 {[%clk 0:00:30.5]}
29. Nd4 {[%clk 0:01:00.5]} 29... Bxd4 {[%clk 0:00:30]} 30. Bxd4 {[%clk
0:01:01.6]} 30... Ng5 {[%clk 0:00:28.9]} 31. h4 {[%clk 0:00:38.1]} 31... Ne4
{[%clk 0:00:22.1]} 32. Bxb6 {[%clk 0:00:22.9]} 32... Nxg3 {[%clk 0:00:20.4]} 33.
fxg3 {[%clk 0:00:23.8]} 33... Qxg3+ {[%clk 0:00:21.9]} 34. Kf1 {[%clk
0:00:16.7]} 34... Qf4+ {[%clk 0:00:15.9]} 35. Bf2 {[%clk 0:00:17.5]} 35... Qf3
{[%clk 0:00:16.6]} 36. c5 {[%clk 0:00:17.1]} 36... Qh1+ {[%clk 0:00:15.4]} 37.
Ke2 {[%clk 0:00:17.8]} 37... Qc6 {[%clk 0:00:15.2]} 38. b4 {[%clk 0:00:17.2]}
38... f5 {[%clk 0:00:14.6]} 39. a4 {[%clk 0:00:17.6]} 39... f4 {[%clk
0:00:13.4]} 40. b5 {[%clk 0:00:19.1]} 40... f3+ {[%clk 0:00:14.9]} 41. Kf1
{[%clk 0:00:20]} 41... Qd7 {[%clk 0:00:08.2]} 42. c6 {[%clk 0:00:19.4]} 42...
Qc7 {[%clk 0:00:08.1]} 43. b6 {[%clk 0:00:18.7]} 43... Qh2 {[%clk 0:00:08.9]}
44. Ke1 {[%clk 0:00:13.3]} 44... Qh1+ {[%clk 0:00:08.5]} 45. Kd2 {[%clk
0:00:14.2]} 45... Qg2 {[%clk 0:00:10.1]} 46. Ke3 {[%clk 0:00:13.3]} 46... Qf1
{[%clk 0:00:04.3]} 47. c7 {[%clk 0:00:10]} 1-0

[Event "*** Titled Tuesday Blitz"]
[Site "Chess.com"]
[Date "2019.11.05"]
[Round "5"]
[White "Mostii"]
[Black "Sajkochess"]
[Result "1-0"]
[WhiteElo "2507"]
[BlackElo "2327"]
[TimeControl "180+2"]
[EndTime "14:08:41 PST"]
[Termination "Mostii won by resignation"]

1. d4 {[%clk 0:03:01.9]} 1... Nf6 {[%clk 0:02:58.4]} 2. Nf3 {[%clk 0:03:00.4]}
2... e6 {[%clk 0:02:59.2]} 3. g3 {[%clk 0:03:01.6]} 3... d5 {[%clk 0:02:58.9]}
4. Bg2 {[%clk 0:03:02.5]} 4... c5 {[%clk 0:02:58.7]} 5. O-O {[%clk 0:03:03.8]}
5... cxd4 {[%clk 0:02:56.3]} 6. Nxd4 {[%clk 0:03:05.7]} 6... e5 {[%clk
0:02:57.6]} 7. Nf3 {[%clk 0:03:05.8]} 7... Nc6 {[%clk 0:02:58.1]} 8. b3 {[%clk
0:03:05.1]} 8... Be7 {[%clk 0:02:47.1]} 9. Bb2 {[%clk 0:03:06]} 9... d4 {[%clk
0:02:48]} 10. c3 {[%clk 0:03:00.4]} 10... dxc3 {[%clk 0:02:43.9]} 11. Qxd8+
{[%clk 0:02:45.3]} 11... Bxd8 {[%clk 0:02:43.4]} 12. Nxc3 {[%clk 0:02:46.3]}
12... Be6 {[%clk 0:02:31.3]} 13. Nb5 {[%clk 0:02:29.8]} 13... O-O {[%clk
0:02:27.9]} 14. Nxe5 {[%clk 0:02:26.8]} 14... a6 {[%clk 0:02:12]} 15. Nxc6
{[%clk 0:02:19.2]} 15... axb5 {[%clk 0:02:12.2]} 16. Nd4 {[%clk 0:01:59.2]}
16... Bd7 {[%clk 0:01:54.6]} 17. Bxb7 {[%clk 0:01:56.7]} 17... Ra7 {[%clk
0:01:55.5]} 18. Bc6 {[%clk 0:01:50.3]} 18... Bb6 {[%clk 0:01:52.4]} 19. Bxb5
{[%clk 0:01:29.4]} 19... Rfa8 {[%clk 0:01:34.4]} 20. Bxd7 {[%clk 0:01:10.4]}
20... Nxd7 {[%clk 0:01:25.2]} 21. a4 {[%clk 0:00:52.8]} 21... Rb7 {[%clk
0:01:22.8]} 22. e3 {[%clk 0:00:45.7]} 22... Bxd4 {[%clk 0:01:21.1]} 23. Bxd4
{[%clk 0:00:47.6]} 23... Rxb3 {[%clk 0:01:22]} 24. a5 {[%clk 0:00:48.6]} 24...
h6 {[%clk 0:01:11.9]} 25. a6 {[%clk 0:00:48.1]} 25... Nb8 {[%clk 0:01:05.5]} 26.
a7 {[%clk 0:00:43.9]} 26... Nc6 {[%clk 0:01:05.5]} 27. Rfd1 {[%clk 0:00:29]}
27... Rb7 {[%clk 0:01:02.9]} 28. Bc5 {[%clk 0:00:25.8]} 28... Rb5 {[%clk
0:00:51.4]} 29. Rdc1 {[%clk 0:00:24]} 29... Kh7 {[%clk 0:00:42.5]} 30. Ra6
{[%clk 0:00:24]} 30... Ne5 {[%clk 0:00:35.9]} 31. Bd4 {[%clk 0:00:24.9]} 31...
Nf3+ {[%clk 0:00:32.3]} 32. Kg2 {[%clk 0:00:23.9]} 32... Nxd4 {[%clk 0:00:30.2]}
33. exd4 {[%clk 0:00:25.4]} 33... Rb7 {[%clk 0:00:30.6]} 34. Rca1 {[%clk
0:00:24.8]} 34... Rb4 {[%clk 0:00:30.6]} 35. R1a4 {[%clk 0:00:25.1]} 35... Rb5
{[%clk 0:00:29.3]} 36. Kf3 {[%clk 0:00:25.2]} 36... f6 {[%clk 0:00:28.4]} 37.
R6a5 {[%clk 0:00:23.3]} 37... Rb7 {[%clk 0:00:24.4]} 38. h4 {[%clk 0:00:23.7]}
38... Kg6 {[%clk 0:00:25.3]} 39. d5 {[%clk 0:00:20.4]} 39... Kf7 {[%clk
0:00:26]} 40. Ke4 {[%clk 0:00:21.2]} 40... Ke7 {[%clk 0:00:26.3]} 41. Ra6 {[%clk
0:00:21.7]} 41... Kd7 {[%clk 0:00:26.8]} 42. Kf5 {[%clk 0:00:21.7]} 42... Rb5
{[%clk 0:00:21.5]} 43. Kg6 {[%clk 0:00:21.2]} 43... Rxd5 {[%clk 0:00:21.2]} 44.
Kxg7 {[%clk 0:00:22.1]} 44... f5 {[%clk 0:00:21.2]} 45. Rf6 {[%clk 0:00:21]}
45... Kc7 {[%clk 0:00:18.4]} 46. Rf7+ {[%clk 0:00:20.8]} 46... Kb6 {[%clk
0:00:18.6]} 47. Rf8 {[%clk 0:00:22.1]} 47... Rxa7+ {[%clk 0:00:19.2]} 48. Rxa7
{[%clk 0:00:24]} 48... Kxa7 {[%clk 0:00:20.8]} 49. Kxh6 {[%clk 0:00:25.5]} 49...
Kb7 {[%clk 0:00:20.9]} 50. Kg6 {[%clk 0:00:25.4]} 50... Kc7 {[%clk 0:00:21.3]}
51. Rxf5 {[%clk 0:00:25.7]} 51... Rd2 {[%clk 0:00:21.9]} 52. h5 {[%clk
0:00:26.4]} 52... Kd7 {[%clk 0:00:23.1]} 53. h6 {[%clk 0:00:27.7]} 53... Rd6+
{[%clk 0:00:24.3]} 54. Rf6 {[%clk 0:00:28.5]} 54... Rd1 {[%clk 0:00:24.7]} 55.
h7 {[%clk 0:00:28.9]} 55... Rh1 {[%clk 0:00:25.6]} 56. Kg7 {[%clk 0:00:30.8]}
56... Ke7 {[%clk 0:00:26.3]} 57. Rh6 {[%clk 0:00:31.7]} 1-0